[Event "EYCC Open-U10 2019"]
[Site "Bratislava"]
[Date "2019.08.09"]
[Round "8.18"]
[White "Tabuenca Mendataurigoitia, Dani"]
[Black "Rudnev, Andrei"]
[Result "1-0"]
[ECO "C41"]
[WhiteElo "1765"]
[BlackElo "1607"]
[Annotator "NA"]
[PlyCount "84"]
[EventDate "2019.08.02"]
[EventType "swiss"]
[EventCountry "SVK"]
[SourceTitle "playchess.com"]
[Source "ChessBase"]
[SourceQuality "1"]
[TimeControl "40/5400+30:1800+30"]

1. e4 {[%emt 0:00:00]} d6 {[%emt 0:00:00]} 2. d4 {[%emt 0:00:23]} Nf6 3. Nc3 {[%emt 0:00:46]} e5 {[%emt 0:00:05]} 4. Nf3 {[%emt 0:05:16]} Nbd7 {[%emt 0:00:08]} 5. Bc4 Be7 {[%emt 0:00:07]} 6. O-O {[%emt 0:01:18]} O-O {[%emt 0:00:28]} 7. Re1 {[%emt 0:00:46]} c6 {[%emt 0:01:05]} 8. a4 {[%emt 0:00:44]} a5 9. Bg5 {[%emt 0:05:34]} Qc7 {[%emt 0:04:17]} 10. Nh4 {[%emt 0:04:44]} h6 {[%emt 0:10:59]} 11. Ng6 Re8 12. Nxe7+ {[%emt 0:08:52]} Rxe7 {[%emt 0:00:37]} 13. Bh4 {[%emt 0:00:23]} g5 {[%emt 0:00:30]} 14. Bg3 {[%emt 0:00:30]} Nf8 {[%emt 0:13:57]} 15. h4 {[%emt 0:07:34]} g4 {[%emt 0:00:30]} 16. Qd2 {[%emt 0:04:33]} Kh7 {[%emt 0:09:00]} 17. Rad1 {[%emt 0:10:17]} Nh5 {[%emt 0:16:57]} 18. Re3 {[%emt 0:07:51]} Ng6 {[%emt 0:06:17]} 19. Be2 {[%emt 0:05:08]} Bd7 {[%emt 0:02:31]} 20. dxe5 {[%emt 0:02:10]} dxe5 {[%emt 0:01:30]} 21. Rd3 {[%emt 0:01:19]} Be6 {[%emt 0:06:27]} 22. Rd6 {[%emt 0:06:08]} Rae8 {[%emt 0:05:15]} 23. b3 Qb6 {[%emt 0:04:38]} 24. Kh2 {[%emt 0:07:49]} Ngf4 {[%emt 0:02:44]} 25. Kh1 {[%emt 0:05:02]} Qc5 {[%emt 0:02:11]} 26. Bf1 {[%emt 0:01:51]} Bd5 {[%emt 0:06:29]} 27. Rxd5 {[%emt 0:01:43]} cxd5 {[%emt 0:00:06]} 28. exd5 {[%emt 0:00:11]} Rd8 {[%emt 0:01:49]} 29. d6 {[%emt 0:01:32]} Red7 {[%emt 0:01:20]} 30. Ne4 {[%emt 0:00:11]} Qc6 {[%emt 0:01:19]} 31. Bxf4 {[%emt 0:00:27]} exf4 {[%emt 0:00:39]} 32. Bb5 {[%emt 0:00:18]} Qb6 {[%emt 0:01:04]} 33. Bxd7 {[%emt 0:00:29]} Rxd7 {[%emt 0:00:04]} 34. Qd5 {[%emt 0:00:16]} Qc6 {[%emt 0:01:54]} 35. Qf5+ {[%emt 0:01:33]} Kh8 {[%emt 0:00:19]} 36. Nc5 {[%emt 0:01:01]} Rxd6 {[%emt 0:00:37]} 37. Qe5+ {[%emt 0:00:18]} Rf6 {[%emt 0:00:35]} 38. Qxh5 {[%emt 0:00:40]} g3 {[%emt 0:00:40]} 39. Nd7 {[%emt 0:02:25]} f3 {[%emt 0:01:37]} 40. Nxf6 {[%emt 0:00:00]} fxg2+ {[%emt 0:00:00]} 41. Kg1 {[%emt 0:01:03]} Qxf6 42. fxg3 Qd8 1-0

[Event "EYCC Open-U10 2019"]
[Site "Bratislava"]
[Date "2019.08.09"]
[Round "8.19"]
[White "Gal, Andrej"]
[Black "Gordeev, Denis"]
[Result "1/2-1/2"]
[ECO "B40"]
[WhiteElo "1705"]
[BlackElo "1467"]
[Annotator "NA"]
[PlyCount "86"]
[EventDate "2019.08.02"]
[EventType "swiss"]
[EventCountry "SVK"]
[SourceTitle "playchess.com"]
[Source "ChessBase"]
[SourceQuality "1"]
[TimeControl "40/5400+30:1800+30"]

1. e4 {[%emt 0:00:00]} c5 {[%emt 0:00:00]} 2. Nf3 {[%emt 0:00:00]} e6 {[%emt 0:00:24]} 3. c3 {[%emt 0:00:41]} d5 {[%emt 0:01:44]} 4. exd5 {[%emt 0:01:02]} Qxd5 {[%emt 0:00:31]} 5. d4 {[%emt 0:00:48]} Nf6 {[%emt 0:00:20]} 6. Be2 {[%emt 0:00:57]} Be7 {[%emt 0:00:47]} 7. O-O {[%emt 0:02:29]} O-O {[%emt 0:00:25]} 8. Be3 {[%emt 0:02:44]} Ng4 {[%emt 0:11:16]} 9. Bf4 {[%emt 0:06:34]} Nc6 {[%emt 0:01:42]} 10. h3 {[%emt 0:06:44]} Nf6 {[%emt 0:00:37]} 11. dxc5 {[%emt 0:09:04]} Bxc5 {[%emt 0:04:07]} 12. Qc2 {[%emt 0:05:13]} e5 {[%emt 0:08:11]} 13. Bg3 {[%emt 0:14:07]} e4 {[%emt 0:23:02]} 14. Rd1 {[%emt 0:13:48]} Qf5 {[%emt 0:03:01]} 15. Nd4 {[%emt 0:05:41]} Bxd4 {[%emt 0:07:04]} 16. cxd4 {[%emt 0:01:17]} Rd8 {[%emt 0:01:48]} 17. Qa4 {[%emt 0:05:35]} Nd5 {[%emt 0:08:28]} 18. Nc3 {[%emt 0:05:27]} Nb6 {[%emt 0:02:36]} 19. Qb5 {[%emt 0:00:50]} Qxb5 {[%emt 0:03:31]} 20. Nxb5 {[%emt 0:00:11]} Nd5 {[%emt 0:03:03]} 21. Bc4 {[%emt 0:02:24]} Be6 {[%emt 0:02:32]} 22. Nd6 {[%emt 0:02:40]} Na5 {[%emt 0:03:24]} 23. Bxd5 {[%emt 0:02:16]} Bxd5 {[%emt 0:00:21]} 24. b3 {[%emt 0:00:57]} Rd7 {[%emt 0:00:59]} 25. Rac1 {[%emt 0:01:10]} Nc6 {[%emt 0:00:21]} 26. Rc5 {[%emt 0:00:36]} Ne7 {[%emt 0:00:26]} 27. Rdc1 {[%emt 0:00:55]} Rad8 {[%emt 0:01:15]} 28. Rc7 {[%emt 0:02:22]} Bc6 {[%emt 0:01:56]} 29. Rxd7 {[%emt 0:00:39]} Rxd7 {[%emt 0:00:17]} 30. b4 {[%emt 0:01:23]} a6 {[%emt 0:00:25]} 31. a3 {[%emt 0:00:37]} g6 {[%emt 0:00:33]} 32. Kf1 {[%emt 0:00:51]} f5 {[%emt 0:00:15]} 33. Be5 {[%emt 0:00:17]} Nd5 {[%emt 0:00:45]} 34. Ke2 {[%emt 0:02:07]} Kf8 {[%emt 0:00:30]} 35. Kd2 {[%emt 0:00:19]} Ke7 {[%emt 0:00:28]} 36. Nc4 {[%emt 0:00:34]} Bb5 {[%emt 0:01:30]} 37. Ne3 {[%emt 0:00:24]} Bc6 {[%emt 0:00:13]} 38. Nxd5+ {[%emt 0:00:31]} Rxd5 {[%emt 0:00:09]} 39. Ke3 {[%emt 0:00:22]} Ke6 {[%emt 0:00:26]} 40. Kf4 {[%emt 0:00:00]} Kf7 {[%emt 0:00:00]} 41. Kg5 {[%emt 0:02:28]} a5 {[%emt 0:01:52]} 42. Rc5 {[%emt 0:03:36]} axb4 {[%emt 0:03:01]} 43. axb4 {[%emt 0:00:35]} Rxc5 {[%emt 0:00:56]} 1/2-1/2

[Event "EYCC Open-U10 2019"]
[Site "Bratislava"]
[Date "2019.08.09"]
[Round "8.20"]
[White "Misiuk, Martynas"]
[Black "Medhus, Vitus Bondo"]
[Result "1/2-1/2"]
[ECO "B23"]
[WhiteElo "1304"]
[BlackElo "1704"]
[Annotator "NA"]
[PlyCount "45"]
[EventDate "2019.08.02"]
[EventType "swiss"]
[EventCountry "SVK"]
[SourceTitle "playchess.com"]
[Source "ChessBase"]
[SourceQuality "1"]
[TimeControl "40/5400+30:1800+30"]

1. e4 {[%emt 0:00:00]} c5 {[%emt 0:00:00]} 2. Nc3 {[%emt 0:00:00]} g6 {[%emt 0:01:01]} 3. d4 {[%emt 0:00:51]} cxd4 {[%emt 0:02:25]} 4. Qxd4 {[%emt 0:00:24]} Nf6 {[%emt 0:00:18]} 5. Nf3 {[%emt 0:01:19]} Nc6 {[%emt 0:01:35]} 6. Qa4 {[%emt 0:01:48]} d6 {[%emt 0:02:34]} 7. e5 {[%emt 0:00:46]} dxe5 {[%emt 0:03:21]} 8. Nxe5 {[%emt 0:00:13]} Bd7 {[%emt 0:00:43]} 9. Nxd7 {[%emt 0:00:14]} Nxd7 {[%emt 0:06:23]} 10. Bb5 {[%emt 0:02:26]} Rc8 {[%emt 0:01:15]} 11. O-O {[%emt 0:00:47]} a6 {[%emt 0:01:46]} 12. Bd3 {[%emt 0:02:06]} Nc5 13. Qh4 {[%emt 0:02:14]} Bg7 {[%emt 0:09:10]} 14. Bh6 {[%emt 0:00:49]} O-O {[%emt 0:00:18]} 15. Rad1 {[%emt 0:00:34]} Nxd3 {[%emt 0:02:40]} 16. Rxd3 {[%emt 0:00:19]} Qb6 {[%emt 0:01:26]} 17. Rh3 {[%emt 0:02:44]} Qd4 {[%emt 0:06:14]} 18. Bf4 {[%emt 0:09:05]} h5 {[%emt 0:00:50]} 19. Rd1 {[%emt 0:01:04]} Qb4 {[%emt 0:04:06]} 20. Nd5 {[%emt 0:04:25]} Rfd8 {[%emt 0:02:39]} 21. Rhd3 {[%emt 0:08:12]} Bf6 {[%emt 0:11:55]} 22. Nxb4 {[%emt 0:15:14]} Rxd3 {[%emt 0:01:46]} 23. Rxd3 {[%emt 0:00:30]} 1/2-1/2

[Event "EYCC Open-U10 2019"]
[Site "Bratislava"]
[Date "2019.08.09"]
[Round "8.21"]
[White "Haubold, Sebastian Marcel"]
[Black "Deveci, Huseyin Said"]
[Result "0-1"]
[ECO "C91"]
[WhiteElo "1455"]
[BlackElo "1558"]
[Annotator "NA"]
[PlyCount "118"]
[EventDate "2019.08.02"]
[EventType "swiss"]
[EventCountry "SVK"]
[SourceTitle "playchess.com"]
[Source "ChessBase"]
[SourceQuality "1"]
[TimeControl "40/5400+30:1800+30"]

1. e4 {[%emt 0:00:00]} e5 {[%emt 0:00:00]} 2. Nf3 {[%emt 0:00:00]} Nc6 {[%emt 0:00:00]} 3. Bb5 {[%emt 0:00:00]} a6 {[%emt 0:00:00]} 4. Ba4 {[%emt 0:00:52]} Nf6 {[%emt 0:00:00]} 5. O-O {[%emt 0:00:43]} b5 {[%emt 0:00:27]} 6. Bb3 {[%emt 0:00:11]} d6 {[%emt 0:00:06]} 7. c3 {[%emt 0:02:43]} Be7 {[%emt 0:00:08]} 8. Re1 {[%emt 0:01:31]} O-O {[%emt 0:00:11]} 9. d4 {[%emt 0:01:32]} Bg4 {[%emt 0:06:16]} 10. Be3 {[%emt 0:03:37]} Qd7 {[%emt 0:08:23]} 11. Nbd2 {[%emt 0:05:46]} Rad8 {[%emt 0:06:13]} 12. Qc2 {[%emt 0:12:18]} exd4 {[%emt 0:21:18]} 13. cxd4 {[%emt 0:07:42]} Bh5 {[%emt 0:08:53]} 14. Rac1 {[%emt 0:07:05]} Bxf3 {[%emt 0:14:07]} 15. gxf3 {[%emt 0:06:22]} Nb4 {[%emt 0:03:25]} 16. Qc3 {[%emt 0:08:48]} a5 {[%emt 0:02:51]} 17. a3 {[%emt 0:06:22]} Na6 {[%emt 0:00:24]} 18. Qxa5 {[%emt 0:01:13]} Ra8 {[%emt 0:00:11]} 19. Qc3 {[%emt 0:00:27]} Qh3 {[%emt 0:04:02]} 20. Qd3 {[%emt 0:05:11]} Rab8 {[%emt 0:02:46]} 21. Rc6 {[%emt 0:03:29]} Qc8 {[%emt 0:03:46]} 22. Kh1 {[%emt 0:06:36]} Qb7 {[%emt 0:00:14]} 23. Rec1 {[%emt 0:01:09]} Nc5 {[%emt 0:00:33]} 24. R6xc5 {[%emt 0:02:38]} dxc5 {[%emt 0:00:05]} 25. dxc5 {[%emt 0:00:14]} c6 {[%emt 0:00:44]} 26. e5 {[%emt 0:01:01]} Rbd8 {[%emt 0:02:02]} 27. Qf5 {[%emt 0:01:08]} Nd5 {[%emt 0:00:20]} 28. Bh6 {[%emt 0:03:36]} g6 {[%emt 0:02:47]} 29. Rg1 {[%emt 0:02:02]} Kh8 {[%emt 0:01:49]} 30. Qg4 {[%emt 0:00:56]} Rfe8 {[%emt 0:00:41]} 31. h4 {[%emt 0:03:15]} Qd7 {[%emt 0:00:20]} 32. Qg3 {[%emt 0:00:32]} Qf5 {[%emt 0:01:06]} 33. Ne4 {[%emt 0:01:15]} Qh5 {[%emt 0:01:19]} 34. Bg5 {[%emt 0:00:25]} Bxg5 {[%emt 0:01:07]} 35. Nxg5 {[%emt 0:00:14]} Re7 {[%emt 0:00:26]} 36. Bd1 {[%emt 0:02:42]} Qh6 {[%emt 0:01:35]} 37. f4 {[%emt 0:01:38]} Nc7 {[%emt 0:01:14]} 38. Bf3 {[%emt 0:00:58]} Rd3 {[%emt 0:01:08]} 39. Qg4 {[%emt 0:00:08]} Nd5 {[%emt 0:00:49]} 40. Qc8+ {[%emt 0:00:00]} Kg7 {[%emt 0:00:00]} 41. Qg4 {[%emt 0:01:02]} Rd4 {[%emt 0:00:27]} 42. Bxd5 {[%emt 0:05:15]} cxd5 {[%emt 0:01:57]} 43. Qg3 {[%emt 0:05:29]} Qh5 {[%emt 0:01:12]} 44. f3 {[%emt 0:04:12]} h6 {[%emt 0:01:24]} 45. Nh3 {[%emt 0:02:21]} Rd3 {[%emt 0:00:14]} 46. Rf1 {[%emt 0:01:48]} Rc7 {[%emt 0:03:45]} 47. Qf2 {[%emt 0:03:35]} d4 {[%emt 0:01:19]} 48. b4 {[%emt 0:00:26]} Qf5 {[%emt 0:00:25]} 49. Kg2 {[%emt 0:01:08]} Ra7 {[%emt 0:00:20]} 50. c6 {[%emt 0:00:42]} Raxa3 {[%emt 0:00:18]} 51. Qe1 {[%emt 0:03:12]} Rac3 {[%emt 0:01:27]} 52. Qb1 {[%emt 0:02:09]} Rd2+ {[%emt 0:00:33]} 53. Kg3 {[%emt 0:00:13]} Rcc2 {[%emt 0:00:37]} 54. Nf2 {[%emt 0:00:19]} g5 {[%emt 0:00:56]} 55. hxg5 {[%emt 0:00:42]} hxg5 {[%emt 0:00:04]} 56. c7 {[%emt 0:00:56]} gxf4+ {[%emt 0:00:20]} 57. Kg2 {[%emt 0:01:06]} Qg5+ {[%emt 0:00:20]} 58. Kh1 {[%emt 0:00:35]} Qh4+ {[%emt 0:00:33]} 59. Kg2 {[%emt 0:00:11]} Rxf2+ {[%emt 0:00:08]} 0-1

[Event "EYCC Open-U10 2019"]
[Site "Bratislava"]
[Date "2019.08.09"]
[Round "8.22"]
[White "Bartodziej, Bartosz"]
[Black "Govoreanu, Matei"]
[Result "1-0"]
[ECO "B06"]
[WhiteElo "1526"]
[BlackElo "1241"]
[Annotator "NA"]
[PlyCount "105"]
[EventDate "2019.08.02"]
[EventType "swiss"]
[EventCountry "SVK"]
[SourceTitle "playchess.com"]
[Source "ChessBase"]
[SourceQuality "1"]
[TimeControl "40/5400+30:1800+30"]

1. e4 {[%emt 0:00:00]} g6 {[%emt 0:00:24]} 2. d4 {[%emt 0:00:00]} Bg7 {[%emt 0:01:10]} 3. Nc3 {[%emt 0:00:54]} c6 {[%emt 0:01:02]} 4. f4 {[%emt 0:01:29]} d5 {[%emt 0:03:12]} 5. e5 {[%emt 0:01:18]} Nh6 {[%emt 0:00:52]} 6. Nf3 {[%emt 0:02:42]} Bg4 {[%emt 0:04:35]} 7. h3 {[%emt 0:03:04]} Bxf3 {[%emt 0:00:20]} 8. Qxf3 {[%emt 0:00:15]} Nf5 {[%emt 0:00:10]} 9. Ne2 {[%emt 0:02:09]} e6 {[%emt 0:13:22]} 10. Bd2 {[%emt 0:10:50]} Qb6 {[%emt 0:04:35]} 11. Qc3 {[%emt 0:08:51]} h5 {[%emt 0:01:46]} 12. g3 {[%emt 0:02:10]} Nd7 {[%emt 0:07:34]} 13. O-O-O {[%emt 0:06:54]} O-O-O {[%emt 0:05:08]} 14. Be1 {[%emt 0:10:56]} f6 {[%emt 0:06:44]} 15. Qd3 {[%emt 0:10:58]} Kb8 {[%emt 0:10:10]} 16. Kb1 {[%emt 0:04:33]} c5 {[%emt 0:15:08]} 17. c3 {[%emt 0:02:33]} c4 {[%emt 0:00:23]} 18. Qf3 {[%emt 0:04:04]} Ne7 {[%emt 0:02:21]} 19. g4 {[%emt 0:05:21]} hxg4 {[%emt 0:02:54]} 20. hxg4 {[%emt 0:00:20]} Rxh1 {[%emt 0:00:11]} 21. Qxh1 {[%emt 0:00:11]} Rh8 {[%emt 0:00:09]} 22. Qf3 {[%emt 0:01:27]} a5 {[%emt 0:00:52]} 23. Kc2 {[%emt 0:05:19]} Qc6 {[%emt 0:01:46]} 24. Rc1 {[%emt 0:01:21]} Qa4+ {[%emt 0:00:43]} 25. Kb1 {[%emt 0:00:14]} Qb5 {[%emt 0:01:09]} 26. Ka1 {[%emt 0:01:49]} Bh6 {[%emt 0:04:22]} 27. exf6 {[%emt 0:02:58]} Nc6 {[%emt 0:03:39]} 28. g5 {[%emt 0:00:44]} Bf8 {[%emt 0:00:15]} 29. Bh3 {[%emt 0:01:05]} Nd8 {[%emt 0:00:24]} 30. Qe3 {[%emt 0:01:09]} Qa6 {[%emt 0:00:11]} 31. Bg4 {[%emt 0:02:42]} a4 {[%emt 0:00:50]} 32. Bg3 {[%emt 0:01:23]} Ka8 {[%emt 0:00:22]} 33. Qd2 {[%emt 0:00:34]} a3 {[%emt 0:00:52]} 34. Rb1 {[%emt 0:01:34]} Nc6 {[%emt 0:04:08]} 35. bxa3 {[%emt 0:02:40]} Na7 {[%emt 0:00:46]} 36. a4 {[%emt 0:01:04]} Ba3 {[%emt 0:00:39]} 37. Qc2 {[%emt 0:00:32]} Nf8 {[%emt 0:01:00]} 38. Ng1 {[%emt 0:00:46]} Nc6 {[%emt 0:00:34]} 39. Nf3 {[%emt 0:00:39]} Qa7 {[%emt 0:00:34]} 40. Ne5 {[%emt 0:00:00]} Nxd4 {[%emt 0:00:00]} 41. Qd2 {[%emt 0:08:51]} Nc6 {[%emt 0:05:08]} 42. Nxc6 {[%emt 0:01:34]} bxc6 {[%emt 0:00:20]} 43. f5 {[%emt 0:03:53]} Nd7 {[%emt 0:09:48]} 44. fxg6 {[%emt 0:02:27]} Nc5 {[%emt 0:03:54]} 45. g7 {[%emt 0:00:58]} Rg8 {[%emt 0:00:14]} 46. Bf2 {[%emt 0:02:39]} Qd7 {[%emt 0:01:24]} 47. Bxc5 {[%emt 0:00:29]} Bxc5 {[%emt 0:00:12]} 48. Qb2 {[%emt 0:00:40]} d4 {[%emt 0:00:57]} 49. Bxe6 {[%emt 0:01:24]} dxc3 {[%emt 0:00:53]} 50. Bxd7 {[%emt 0:01:31]} cxb2+ {[%emt 0:00:18]} 51. Kxb2 {[%emt 0:00:10]} Rd8 {[%emt 0:00:58]} 52. Re1 {[%emt 0:00:40]} c3+ {[%emt 0:01:50]} 53. Kc2 1-0

[Event "EYCC Open-U10 2019"]
[Site "Bratislava"]
[Date "2019.08.09"]
[Round "8.23"]
[White "Butolo, Alexandru-Mircea"]
[Black "Kisic, Jovan"]
[Result "1/2-1/2"]
[ECO "D00"]
[WhiteElo "1593"]
[BlackElo "1757"]
[Annotator "NA"]
[PlyCount "50"]
[EventDate "2019.08.02"]
[EventType "swiss"]
[EventCountry "SVK"]
[SourceTitle "playchess.com"]
[Source "ChessBase"]
[SourceQuality "1"]
[TimeControl "40/5400+30:1800+30"]

1. d4 {[%emt 0:02:21]} d5 {[%emt 0:00:36]} 2. g3 {[%emt 0:00:23]} Nf6 {[%emt 0:01:47]} 3. Bg2 {[%emt 0:00:10]} Bf5 4. c4 {[%emt 0:02:21]} c6 {[%emt 0:02:30]} 5. Nc3 {[%emt 0:00:26]} e6 {[%emt 0:01:05]} 6. Nf3 {[%emt 0:00:35]} h6 {[%emt 0:02:13]} 7. O-O {[%emt 0:01:03]} Bd6 {[%emt 0:01:05]} 8. Qb3 {[%emt 0:01:30]} b6 {[%emt 0:00:37]} 9. Qa4 {[%emt 0:02:49]} O-O {[%emt 0:02:30]} 10. Bf4 {[%emt 0:01:53]} Bxf4 {[%emt 0:06:59]} 11. gxf4 {[%emt 0:00:10]} Nh5 {[%emt 0:01:44]} 12. e3 {[%emt 0:00:13]} Bd3 {[%emt 0:09:56]} 13. Rfd1 {[%emt 0:01:25]} Bxc4 {[%emt 0:00:22]} 14. Ne5 {[%emt 0:00:26]} b5 {[%emt 0:05:48]} 15. Qc2 {[%emt 0:00:11]} b4 {[%emt 0:02:04]} 16. Nxc4 {[%emt 0:01:00]} bxc3 {[%emt 0:00:19]} 17. Ne5 {[%emt 0:00:35]} cxb2 {[%emt 0:04:40]} 18. Rab1 {[%emt 0:00:18]} Qd6 {[%emt 0:03:04]} 19. Rxb2 {[%emt 0:00:52]} Nd7 {[%emt 0:03:58]} 20. Rb7 {[%emt 0:08:10]} Nb6 21. Qxc6 {[%emt 0:02:22]} Qxc6 {[%emt 0:05:32]} 22. Nxc6 {[%emt 0:00:26]} Nc4 {[%emt 0:00:14]} 23. Bf1 {[%emt 0:06:50]} Nd6 {[%emt 0:02:03]} 24. Rb3 {[%emt 0:01:38]} Kh8 {[%emt 0:02:00]} 25. Ba6 {[%emt 0:04:49]} Nf6 {[%emt 0:01:06]} 1/2-1/2

[Event "EYCC Open-U10 2019"]
[Site "Bratislava"]
[Date "2019.08.09"]
[Round "8.24"]
[White "Blumenthal, Michael"]
[Black "Ermitsch, Magnus"]
[Result "1/2-1/2"]
[ECO "B47"]
[WhiteElo "1311"]
[BlackElo "1750"]
[Annotator "NA"]
[PlyCount "61"]
[EventDate "2019.08.02"]
[EventType "swiss"]
[EventCountry "SVK"]
[SourceTitle "playchess.com"]
[Source "ChessBase"]
[SourceQuality "1"]
[TimeControl "40/5400+30:1800+30"]

1. e4 {[%emt 0:00:00]} c5 {[%emt 0:00:02]} 2. Nf3 {[%emt 0:00:00]} e6 {[%emt 0:00:47]} 3. d4 {[%emt 0:00:59]} cxd4 {[%emt 0:00:37]} 4. Nxd4 {[%emt 0:00:13]} Nc6 {[%emt 0:00:46]} 5. Nc3 {[%emt 0:00:21]} Qc7 {[%emt 0:01:01]} 6. Qd3 {[%emt 0:00:46]} a6 {[%emt 0:04:43]} 7. Nxc6 {[%emt 0:00:51]} dxc6 {[%emt 0:03:06]} 8. Qg3 {[%emt 0:02:20]} Qxg3 {[%emt 0:01:02]} 9. hxg3 {[%emt 0:00:10]} e5 {[%emt 0:02:45]} 10. Be3 {[%emt 0:03:49]} Be6 {[%emt 0:02:05]} 11. a3 {[%emt 0:04:16]} Be7 {[%emt 0:04:12]} 12. O-O-O {[%emt 0:00:37]} Nf6 {[%emt 0:02:02]} 13. f3 {[%emt 0:02:40]} O-O {[%emt 0:02:32]} 14. Be2 {[%emt 0:03:44]} b5 {[%emt 0:09:19]} 15. g4 {[%emt 0:04:51]} a5 {[%emt 0:02:17]} 16. a4 {[%emt 0:06:22]} bxa4 {[%emt 0:05:59]} 17. Nxa4 {[%emt 0:01:18]} Nd7 {[%emt 0:01:20]} 18. g5 {[%emt 0:15:00]} Rfb8 {[%emt 0:18:03]} 19. g3 {[%emt 0:16:21]} Rb4 {[%emt 0:04:34]} 20. b3 {[%emt 0:02:08]} Rab8 {[%emt 0:05:22]} 21. Kd2 {[%emt 0:10:44]} c5 {[%emt 0:09:32]} 22. Nb2 {[%emt 0:01:43]} a4 {[%emt 0:01:25]} 23. Nxa4 {[%emt 0:01:24]} c4 {[%emt 0:00:34]} 24. Rb1 {[%emt 0:06:03]} cxb3 {[%emt 0:02:18]} 25. cxb3 {[%emt 0:00:18]} Bxb3 {[%emt 0:01:07]} 26. Nc3 {[%emt 0:02:07]} Nb6 {[%emt 0:02:44]} 27. Ke1 {[%emt 0:03:51]} Na4 {[%emt 0:08:41]} 28. Nxa4 {[%emt 0:01:54]} Bxa4 {[%emt 0:01:19]} 29. Rxb4 {[%emt 0:00:24]} Rxb4 {[%emt 0:00:20]} 30. Kf2 {[%emt 0:00:57]} Rb8 {[%emt 0:01:15]} 31. Ra1 {[%emt 0:01:33]} 1/2-1/2

[Event "EYCC Open-U10 2019"]
[Site "Bratislava"]
[Date "2019.08.09"]
[Round "8.25"]
[White "Hvozdz, Aliaksandr"]
[Black "Dimitrov, Martin"]
[Result "0-1"]
[ECO "B36"]
[WhiteElo "1699"]
[BlackElo "1473"]
[Annotator "NA"]
[PlyCount "108"]
[EventDate "2019.08.02"]
[EventType "swiss"]
[EventCountry "SVK"]
[SourceTitle "playchess.com"]
[Source "ChessBase"]
[SourceQuality "1"]
[TimeControl "40/5400+30:1800+30"]

1. e4 {[%emt 0:00:00]} c5 {[%emt 0:00:00]} 2. Nf3 {[%emt 0:00:00]} g6 {[%emt 0:00:00]} 3. d4 {[%emt 0:00:00]} cxd4 {[%emt 0:00:00]} 4. Nxd4 {[%emt 0:00:00]} Nc6 {[%emt 0:00:00]} 5. c4 {[%emt 0:00:40]} Nf6 {[%emt 0:00:05]} 6. Nc3 {[%emt 0:00:36]} d6 {[%emt 0:00:11]} 7. Be3 {[%emt 0:00:34]} Ng4 {[%emt 0:00:09]} 8. Nxc6 {[%emt 0:03:31]} bxc6 {[%emt 0:00:07]} 9. Bf4 {[%emt 0:01:38]} Bg7 {[%emt 0:01:23]} 10. Qd2 {[%emt 0:03:22]} Rb8 {[%emt 0:01:51]} 11. f3 {[%emt 0:03:33]} Qa5 {[%emt 0:03:13]} 12. Nd1 {[%emt 0:09:00]} Qxd2+ {[%emt 0:00:41]} 13. Kxd2 {[%emt 0:00:19]} Nf2 {[%emt 0:02:46]} 14. Nxf2 {[%emt 0:03:46]} Rxb2+ {[%emt 0:00:44]} 15. Ke3 {[%emt 0:04:29]} Rxf2 {[%emt 0:00:18]} 16. Kxf2 {[%emt 0:03:46]} Bxa1 {[%emt 0:00:06]} 17. Bd3 {[%emt 0:01:01]} Bg7 {[%emt 0:00:08]} 18. Rb1 {[%emt 0:00:45]} O-O {[%emt 0:01:21]} 19. c5 {[%emt 0:02:35]} Bd4+ {[%emt 0:00:46]} 20. Be3 {[%emt 0:00:06]} dxc5 {[%emt 0:07:05]} 21. Rb8 {[%emt 0:06:10]} Be6 {[%emt 0:03:13]} 22. Rb7 {[%emt 0:04:07]} Rd8 {[%emt 0:01:45]} 23. Be2 {[%emt 0:03:10]} Bxa2 {[%emt 0:05:28]} 24. Rxa7 {[%emt 0:01:18]} Be6 {[%emt 0:02:25]} 25. Rxe7 {[%emt 0:03:25]} Rb8 {[%emt 0:02:37]} 26. Rc7 {[%emt 0:08:36]} Rb2 {[%emt 0:00:45]} 27. Rxc6 {[%emt 0:02:08]} Bd7 {[%emt 0:04:18]} 28. Bxd4 {[%emt 0:11:15]} cxd4 {[%emt 0:01:18]} 29. Rd6 {[%emt 0:02:55]} Bb5 {[%emt 0:00:29]} 30. Rxd4 {[%emt 0:00:17]} Rxe2+ {[%emt 0:00:24]} 31. Kg3 {[%emt 0:00:11]} Rc2 {[%emt 0:00:10]} 32. Rd1 {[%emt 0:00:24]} Kg7 {[%emt 0:00:46]} 33. Re1 {[%emt 0:01:25]} g5 {[%emt 0:01:01]} 34. Rd1 {[%emt 0:01:30]} Bc4 {[%emt 0:01:13]} 35. Rg1 {[%emt 0:01:56]} Kg6 {[%emt 0:01:37]} 36. h4 {[%emt 0:01:11]} h6 {[%emt 0:00:59]} 37. hxg5 {[%emt 0:00:53]} hxg5 {[%emt 0:00:14]} 38. Ra1 {[%emt 0:02:54]} f6 {[%emt 0:00:57]} 39. Rd1 {[%emt 0:00:41]} Kf7 {[%emt 0:00:47]} 40. Kh3 {[%emt 0:00:00]} Ke6 {[%emt 0:00:00]} 41. Kg3 {[%emt 0:10:39]} Ke5 {[%emt 0:03:12]} 42. Ra1 {[%emt 0:04:58]} Kd4 {[%emt 0:00:46]} 43. Re1 {[%emt 0:01:29]} Kd3 {[%emt 0:00:59]} 44. e5 {[%emt 0:03:37]} f5 {[%emt 0:01:29]} 45. e6 {[%emt 0:01:57]} Re2 {[%emt 0:00:09]} 46. Rd1+ {[%emt 0:01:38]} Kc2 {[%emt 0:00:12]} 47. Rh1 {[%emt 0:00:43]} Bxe6 {[%emt 0:00:35]} 48. Rh5 {[%emt 0:00:36]} f4+ {[%emt 0:00:19]} 49. Kh2 {[%emt 0:00:08]} Re5 {[%emt 0:00:32]} 50. g3 {[%emt 0:00:58]} Re2+ {[%emt 0:06:15]} 51. Kg1 {[%emt 0:00:41]} g4 {[%emt 0:01:56]} 52. fxg4 {[%emt 0:04:58]} f3 {[%emt 0:01:57]} 53. Rh6 {[%emt 0:00:44]} Rg2+ {[%emt 0:03:15]} 54. Kh1 {[%emt 0:01:10]} Bd5 {[%emt 0:00:18]} 0-1